bitfinex/quotes_SOLUSD_20240726
["timestamp","ask_amount","ask_price","bid_price","bid_amount"]
[1722020791370,12.11232762,183.03,183.0,5.4642]
[1722020791569,11.66,183.01,183.0,5.4642]
[1722020792181,11.66,183.03,183.01,5.4641]
[1722020792380,11.66,183.02,183.0,5.4644]
[1722020793195,0.45232762,183.01,183.0,5.4644]
[1722020793368,11.66,183.01,183.0,5.4644]
[1722020793785,11.66,183.02,183.0,5.4644]
[1722020794379,11.66,183.01,183.0,5.4644]
[1722020795671,11.66,183.02,183.0,5.4644]
[1722020796603,11.66,183.04,183.02,13.6594]
[1722020796895,11.66,183.04,183.02,19.1232]
[1722020797067,11.66,183.04,183.03,5.4635]
[1722020797267,56.66,183.04,183.03,5.4635]
[1722020797590,11.66,183.04,183.03,5.4635]
[1722020797772,11.66,183.06,183.03,5.4635]
[1722020798191,11.66,183.08,183.06,5.4626]
[1722020798777,11.66,183.08,183.05,5.4629]
[1722020798982,11.66,183.08,183.04,19.1207]
[1722020799190,11.66,183.07,183.04,19.1207]
[1722020799382,0.45232762,183.09,183.05,5.4628]
[1722020799588,11.66,183.07,183.05,5.4628]
[1722020800292,11.66,183.08,183.05,5.4628]
[1722020802105,11.66,183.08,183.04,19.1207]
[1722020802400,5.4611,183.12,183.04,25.3175]
[1722020802598,11.66,183.1,183.05,11.66]
[1722020802803,11.66,183.12,183.07,11.66]
[1722020802975,11.66,183.12,183.09,5.4617]
[1722020803294,11.66,183.12,183.1,5.4614]
[1722020803485,5.4605,183.14,183.1,5.4614]
[1722020803486,11.66,183.13,183.1,5.4614]
[1722020803792,11.66,183.13,183.09,5.4617]
[1722020804000,0.45232762,183.13,183.08,25.3147]
[1722020804194,5.4605,183.14,183.08,25.3147]
[1722020804195,5.4605,183.14,183.1,5.4614]
[1722020804385,11.66,183.14,183.11,5.4609]
[1722020804888,11.66,183.13,183.1,20.20677523]
[1722020805289,5.4601,183.15,183.11,5.4611]
[1722020805290,11.66,183.14,183.11,5.4611]
[1722020805678,11.66,183.14,183.1,14.74537523]
[1722020805904,11.66,183.14,183.1,13.6532]
[1722020806206,11.66,183.14,183.1,19.1145]
[1722020806389,11.66,183.14,183.1,20.20668383]
[1722020807604,11.66,183.15,183.11,1.09215607]
[1722020807809,11.66,183.16,183.11,12.75215607]
[1722020808304,11.66,183.16,183.12,5.4608]
[1722020809791,11.66,183.16,183.12,6.55285635]
[1722020809990,11.66,183.15,183.11,5.4611]
[1722020810194,11.66,183.14,183.11,5.4611]
[1722020810491,11.66,183.13,183.1,13.6532]
[1722020810883,11.66,183.12,183.1,19.1146]
[1722020811083,11.66,183.12,183.1,13.6532]
[1722020811280,11.66,183.11,183.1,13.6532]
[1722020811506,11.66,183.11,183.08,5.462]
[1722020811813,11.66,183.09,183.07,19.1182]
[1722020812013,11.66,183.08,183.07,19.1182]
[1722020812188,11.66,183.09,183.08,5.462]
[1722020812586,46.64,183.15,183.08,5.462]
[1722020812804,11.66,183.13,183.09,13.6544]
[1722020813015,11.66,183.1,183.09,13.6544]
[1722020813506,11.66,183.11,183.09,13.6544]
[1722020813717,11.66,183.12,183.11,5.4611]
[1722020815085,11.66,183.12,183.1,5.4614]
[1722020815308,11.66,183.11,183.1,5.4614]
[1722020816896,56.66,183.11,183.1,5.4614]
[1722020817404,56.66,183.11,183.09,19.1161]
[1722020817715,56.66,183.1,183.09,19.1161]
[1722020817916,56.66,183.1,183.09,13.6544]
[1722020818294,45.0,183.1,183.09,19.1161]
[1722020818785,56.66,183.1,183.09,13.6544]
[1722020819506,56.66,183.1,183.09,19.1161]
[1722020819905,45.0,183.1,183.09,19.1161]
[1722020821400,11.66,183.14,183.12,5.4608]
[1722020821603,56.66,183.13,183.12,5.4608]
[1722020822304,56.66,183.13,183.11,5.4611]
[1722020822807,11.66,183.12,183.07,5.4621]
[1722020823021,11.66,183.09,183.06,13.6565]
[1722020823321,45.0,183.08,183.07,5.4621]
[1722020824006,56.66,183.08,183.06,19.1191]
[1722020824896,56.66,183.08,183.07,5.4623]
[1722020825094,45.0,183.08,183.07,5.4623]
[1722020826089,56.66,183.08,183.07,5.4623]
[1722020826296,56.66,183.08,183.06,19.1191]
[1722020826807,11.66,183.07,183.06,19.1191]
[1722020827014,56.66,183.07,183.06,19.1191]
[1722020827209,45.0,183.07,183.06,19.1191]
[1722020829806,11.66,183.1,183.09,5.4617]
[1722020830000,56.66,183.1,183.09,5.4617]
[1722020830612,56.66,183.1,183.08,13.6545]
[1722020830829,45.0,183.09,183.08,13.6545]
[1722020831003,56.66,183.09,183.07,5.4621]
[1722020831444,11.66,183.08,183.07,5.4621]
[1722020831612,56.66,183.08,183.07,5.4621]
[1722020831921,45.0,183.08,183.07,5.4621]
[1722020832131,45.0,183.08,183.05,13.6571]
[1722020832132,56.66,183.08,183.06,5.4626]
[1722020832426,45.0,183.07,183.06,5.4626]
[1722020834729,56.66,183.07,183.05,19.12]
[1722020835238,45.0,183.07,183.06,5.4626]
[1722020835527,45.0,183.07,183.05,13.6571]
[1722020835924,56.66,183.07,183.05,13.6571]
[1722020836104,45.0,183.07,183.05,13.6571]
[1722020836298,11.66,183.07,183.05,13.6571]
[1722020836528,56.66,183.06,183.03,5.4635]
[1722020836744,11.66,183.04,183.02,13.6596]
[1722020837032,56.66,183.03,183.02,13.6596]
[1722020837409,56.66,183.03,182.99,13.6617]
[1722020837607,11.66,183.0,182.95,18.2905]
[1722020837814,45.0,182.99,182.98,5.465]
[1722020855651,0.45232762,183.05,182.98,11.66]
[1722020855956,45.0,183.05,183.03,5.4633]
[1722020856254,15.4859,183.06,183.04,5.4631]
[1722020856548,15.4859,183.06,183.02,5.4636]
[1722020856950,15.4859,183.06,183.03,5.4635]
[1722020857334,45.0,183.05,183.02,5.4638]
[1722020857737,45.0,183.05,183.03,5.4635]
[1722020858043,45.0,183.05,183.04,5.4632]
[1722020858243,11.66,183.09,183.05,5.4628]
[1722020859057,17.1217,183.09,183.04,17.1232]
[1722020859861,45.0,183.08,183.04,17.1232]
[1722020860855,50.4621,183.08,183.04,11.66]
[1722020861365,62.1221,183.08,183.03,30.7818]
[1722020861865,5.4624,183.07,183.03,13.6583]
[1722020862033,50.4627,183.06,183.02,5.4638]
[1722020862233,45.0,183.06,183.02,5.4638]
[1722020862561,45.0,183.06,183.01,11.66]
[1722020862746,45.0,183.06,183.02,5.4638]
[1722020864232,45.0,183.06,183.03,5.4635]
[1722020864461,45.0,183.07,183.03,5.4635]
[1722020864952,45.0,183.07,183.03,17.1235]
[1722020866038,45.0,183.07,183.03,5.4635]
[1722020867160,45.0,183.07,183.04,5.4632]
[1722020867465,45.0,183.07,183.04,13.6574]
[1722020867633,45.0,183.07,183.05,5.4629]
[1722020868337,45.0,183.07,182.98,16.0715]
[1722020868338,16.592,183.05,182.95,11.66]
[1722020868661,11.66,183.0,182.95,11.66]
[1722020868955,45.0,182.99,182.98,5.465]
[1722020869162,45.0,182.99,182.98,17.125]
[1722020869340,28.252,183.05,183.02,5.4638]
[1722020869660,45.0,183.04,183.03,17.1235]
[1722020870032,45.0,183.04,183.03,5.4635]
[1722020870869,45.0,183.04,183.03,17.1235]
[1722020871485,17.1221,183.08,183.03,17.1235]
[1722020871760,11.66,183.1,183.06,5.4626]
[1722020872267,28.252,183.11,183.07,5.4622]
[1722020872848,22.0532,183.11,183.06,5.4626]
[1722020873060,11.66,183.1,183.06,5.4626]
[1722020873272,33.7132,183.11,183.07,5.4623]
[1722020873744,45.0,183.1,183.07,5.4623]
[1722020874644,5.70386846,183.13,183.09,5.4617]
[1722020874966,11.66,183.14,183.1,5.4613]
[1722020875339,11.66,183.15,183.11,5.4611]
[1722020876169,21.3293,183.16,183.11,5.4611]
[1722020876340,11.66,183.14,183.11,5.4611]
[1722020876662,11.16,183.14,183.11,5.4611]
[1722020876862,45.0,183.13,183.11,5.4611]
[1722020877161,5.70319847,183.17,183.1,25.3136]
[1722020877162,45.0,183.14,183.1,25.3136]
[1722020877473,11.66,183.18,183.14,5.46]
[1722020878741,45.0,183.17,183.14,5.46]
[1722020879342,56.66,183.17,183.14,5.46]
[1722020880844,11.66,183.16,183.13,19.1119]
[1722020881042,45.0,183.15,183.13,19.1119]
[1722020881378,45.0,183.15,183.14,5.4603]
[1722020882468,45.0,183.15,183.13,19.1119]
[1722020882979,11.66,183.14,183.12,5.4608]
[1722020883166,45.0,183.15,183.11,5.4611]
[1722020883167,56.66,183.13,183.11,5.4611]
[1722020883364,45.0,183.15,183.1,11.66]
[1722020883562,56.66,183.15,183.1,11.66]
[1722020883886,56.66,183.15,183.13,5.4605]
[1722020883887,11.66,183.14,183.13,5.4605]
[1722020884065,56.66,183.14,183.13,5.4605]
[1722020884386,45.0,183.14,183.13,5.4605]
[1722020885391,56.66,183.14,183.12,5.4608]
[1722020885574,56.66,183.13,183.12,5.4608]
[1722020885887,45.0,183.13,183.12,6.55289884]
[1722020886995,45.0,183.13,183.12,5.4608]
[1722020887193,45.0,183.13,183.12,6.55286625]
[1722020887988,45.0,183.13,183.12,5.4608]
[1722020889069,11.16061938,183.19,183.14,5.46]
[1722020889269,11.66,183.16,183.13,13.6508]
[1722020889488,45.0,183.15,183.14,5.4603]
[1722020889991,45.0,183.15,183.14,6.55228979]
[1722020890191,45.0,183.15,183.14,5.4603]
[1722020890890,5.70181938,183.19,183.16,5.4594]
[1722020891095,11.66,183.17,183.15,19.1094]
[1722020891387,11.66,183.16,183.15,19.1094]
[1722020891796,11.66,183.16,183.15,13.6495]
[1722020892290,11.66,183.16,183.15,19.1095]
[1722020892501,56.66,183.16,183.15,19.1095]
[1722020893968,56.66,183.16,183.15,13.6495]
[1722020894473,56.66,183.16,183.1,11.66]
[1722020894474,56.66,183.16,183.13,5.4605]
[1722020894670,56.66,183.15,183.13,5.4605]
[1722020895873,11.66,183.14,183.13,5.4605]
[1722020896082,56.66,183.14,183.13,5.4605]
[1722020898201,56.66,183.14,183.12,19.113]
[1722020898384,56.66,183.13,183.12,19.113]
[1722020900478,56.66,183.13,183.12,13.6522]
[1722020900670,56.66,183.13,183.09,19.1161]
[1722020900901,11.66,183.1,183.09,19.1161]
[1722020901073,56.66,183.1,183.09,19.1161]
[1722020902313,56.66,183.1,183.09,13.6544]
[1722020902675,56.66,183.1,183.09,19.1161]
[1722020903378,16.3415,183.14,183.11,5.4611]
[1722020903379,11.66,183.12,183.11,5.4611]
[1722020903598,56.66,183.12,183.11,5.4611]
[1722020903897,45.0,183.12,183.11,5.4611]
[1722020904075,11.66,183.15,183.13,5.4603]
[1722020904407,45.0,183.14,183.13,5.4603]
[1722020904575,11.66,183.15,183.13,5.4603]
[1722020905503,11.66,183.14,183.13,5.4603]
[1722020905869,56.66,183.14,183.12,13.6517]
[1722020906074,56.66,183.14,183.12,19.1125]
[1722020906280,45.0,183.13,183.12,19.1125]
[1722020906476,56.66,183.13,183.12,19.1125]
[1722020906792,56.66,183.13,183.12,13.6517]
[1722020907389,56.66,183.13,183.12,19.1125]
[1722020910107,56.66,183.13,183.09,13.6544]
[1722020910308,11.66,183.1,183.09,19.1161]
[1722020910482,56.66,183.1,183.09,19.1161]
[1722020910996,56.66,183.1,183.09,13.6544]
[1722020911202,56.66,183.1,183.07,5.4623]
[1722020911389,5.4609,183.12,183.07,5.4623]
[1722020911390,11.66,183.08,183.07,5.4623]
[1722020912193,11.66,183.08,183.06,19.1192]
[1722020912390,56.66,183.07,183.06,19.1192]
[1722020914104,45.0,183.07,183.06,19.1192]
[1722020915391,56.66,183.07,183.06,19.1192]
[1722020915814,56.66,183.07,183.05,5.4629]
[1722020915992,11.66,183.06,183.04,5.463]
[1722020916191,56.66,183.05,183.03,13.6588]
[1722020916529,56.66,183.04,183.03,19.1223]
[1722020917305,11.66,183.05,183.04,5.4632]
[1722020917488,11.66,183.08,183.05,13.6569]
[1722020917689,45.0,183.07,183.06,5.4626]
[1722020918915,45.0,183.07,183.05,19.1197]
[1722020919296,45.0,183.07,183.06,5.4626]
[1722020921207,45.0,183.07,183.05,20.21227165]
[1722020921410,56.66,183.08,183.05,20.21227165]
[1722020922509,45.0,183.08,183.05,20.21227165]
[1722020922711,56.66,183.08,183.05,13.6569]
[1722020923227,11.66,183.06,183.01,13.6602]
[1722020923530,11.66,183.04,183.01,13.6602]
[1722020924041,45.0,183.03,183.01,19.1243]
[1722020924623,45.0,183.03,183.02,5.4638]
[1722020925401,11.66,183.07,183.04,5.4632]
[1722020925730,15.7085,183.1,183.04,11.66]
[1722020925907,27.3685,183.1,183.07,5.4623]
[1722020926115,11.66,183.09,183.07,5.4623]
[1722020926636,11.66,183.09,183.06,19.1192]
[1722020927129,45.0,183.08,183.06,19.1192]
[1722020928730,56.66,183.08,183.06,19.1192]
[1722020929827,45.0,183.08,183.06,19.1192]
[1722020935720,11.15753956,183.13,183.06,13.6566]
[1722020935935,11.66,183.13,183.08,13.6545]
[1722020936236,11.66,183.13,183.11,5.4611]
[1722020937244,11.66,183.14,183.1,13.6532]
[1722020938040,11.66,183.14,183.11,5.4611]
[1722020938207,11.66,183.13,183.11,5.4611]
[1722020938413,56.66,183.12,183.1,19.1145]
[1722020939425,11.66,183.11,183.1,19.1145]
[1722020939624,56.66,183.11,183.1,19.1145]
[1722020939835,45.0,183.11,183.1,19.1145]
[1722020940541,56.66,183.11,183.1,19.1145]
[1722020940729,45.0,183.11,183.1,19.1145]
[1722020941641,56.66,183.11,183.1,19.1145]
[1722020942729,45.0,183.11,183.1,19.1145]
[1722020947556,11.66,183.13,183.12,5.4608]
[1722020947851,56.66,183.13,183.12,5.4608]
[1722020949448,56.66,183.13,183.11,5.4611]
[1722020949645,45.0,183.12,183.11,5.4611]
[1722020950027,56.66,183.12,183.1,13.6532]
[1722020950229,11.66,183.11,183.1,13.6532]
[1722020950452,56.66,183.11,183.1,13.6532]
[1722020950940,56.66,183.11,183.05,18.2527]
[1722020950941,62.1212,183.11,183.07,13.6557]
[1722020951141,11.66,183.08,183.07,19.1179]
[1722020951349,56.66,183.08,183.07,19.1179]
[1722020951722,45.0,183.08,183.07,19.1179]
[1722020953045,16.3633,183.16,183.1,13.6536]
[1722020953247,5.46,183.15,183.1,19.115]
[1722020953445,11.66,183.12,183.1,19.115]
[1722020954146,16.3633,183.16,183.08,5.462]
[1722020954147,11.66,183.11,183.08,5.462]
[1722020954324,11.66,183.09,183.07,5.4621]
[1722020954528,11.66,183.09,183.08,5.462]
[1722020954727,56.66,183.09,183.08,5.462]
[1722020955335,45.0,183.09,183.08,5.462]
[1722020955740,56.66,183.09,183.08,5.462]
[1722020956338,56.66,183.09,183.07,5.4623]
[1722020956548,56.66,183.09,183.08,5.462]
[1722020957858,45.0,183.09,183.08,5.462]
[1722020958056,56.66,183.09,183.08,5.462]
[1722020958236,45.0,183.09,183.08,5.462]
[1722020960363,56.66,183.09,183.06,19.1184]
[1722020960547,56.66,183.08,183.07,5.4623]
[1722020961153,45.0,183.08,183.07,5.4623]
[1722020961757,45.0,183.08,183.06,19.1186]
[1722020962247,56.66,183.08,183.06,19.1186]
[1722020963355,20.0,183.17,183.09,13.6542]
[1722020963561,11.66,183.14,183.1,5.4612]
[1722020964860,45.0,183.13,183.1,5.4612]
[1722020965264,56.66,183.13,183.1,5.4612]
[1722020965561,11.66,183.12,183.09,13.6542]
[1722020965766,11.66,183.1,183.09,13.6542]
[1722020965941,56.66,183.1,183.08,5.462]
[1722020966141,11.66,183.1,183.08,5.462]
[1722020966344,45.0,183.09,183.08,5.462]
[1722020970460,45.0,183.09,183.07,19.1177]
[1722020970667,45.0,183.1,183.07,19.1177]
[1722020971159,45.0,183.1,183.08,5.462]
[1722020973071,45.0,183.1,183.07,19.1177]
[1722020984277,45.0,183.11,183.08,5.4618]
[1722020984577,45.0,183.09,183.08,5.4618]
[1722020986084,35.85401146,183.21,183.1,13.6535]
[1722020986256,11.66,183.15,183.12,5.4608]
[1722020986460,11.66,183.14,183.12,5.4608]
[1722020987457,45.0,183.13,183.12,5.4608]
[1722020988181,56.66,183.13,183.12,5.4608]
[1722020988887,56.66,183.13,183.11,5.4611]
[1722020989059,11.66,183.12,183.1,19.1149]
[1722020989258,56.66,183.11,183.1,19.1149]
[1722020989459,56.66,183.11,183.1,13.6535]
[1722020989985,56.66,183.11,183.09,5.4617]
[1722020990288,45.0,183.11,183.09,5.4617]
[1722020990463,45.0,183.12,183.09,5.4617]
[1722020990664,11.66,183.1,183.09,5.4617]
[1722020990855,56.66,183.1,183.09,5.4617]
[1722020991259,56.66,183.1,183.08,5.462]
[1722020991468,56.66,183.09,183.08,5.462]
[1722020991683,45.0,183.09,183.08,5.462]
[1722020991888,56.66,183.09,183.08,5.462]
[1722020994485,45.0,183.09,183.08,5.462]
[1722020994678,56.66,183.09,183.07,19.118]
[1722020994887,11.66,183.08,183.07,13.6557]
[1722020995208,56.66,183.08,183.07,13.6557]
[1722020995591,56.16,183.08,183.07,13.6557]
[1722020995791,45.0,183.08,183.07,19.118]
[1722020995980,56.66,183.08,183.07,19.118]
[1722020997900,45.0,183.08,183.07,19.118]
[1722020999599,0.45232762,183.14,183.1,13.6536]
[1722020999790,11.66,183.11,183.1,19.115]
[1722020999993,21.51246103,183.11,183.1,19.115]
[1722021000198,11.66,183.11,183.1,13.6536]
[1722021001004,66.51254368,183.11,183.1,13.6536]
[1722021001167,66.51254368,183.11,183.09,5.4617]
[1722021001367,56.66,183.1,183.09,5.4617]
[1722021001613,56.66,183.1,183.07,13.6556]
[1722021001779,45.0,183.1,183.08,5.4619]
[1722021002095,11.66,183.1,183.08,5.4619]
[1722021002295,45.0,183.09,183.08,5.4619]
[1722021002801,45.0,183.09,183.07,13.6556]
[1722021003007,11.66,183.08,183.04,13.6578]
[1722021003173,50.462,183.09,183.04,13.6578]
[1722021003174,56.66,183.07,183.04,19.1208]
[1722021003377,45.0,183.06,183.04,19.1208]
[1722021003804,45.0,183.06,183.05,5.4629]
[1722021007198,11.66,183.09,183.07,5.4623]
[1722021007497,45.0,183.08,183.07,5.4623]
[1722021009089,45.0,183.08,183.05,5.4627]
[1722021009290,56.66,183.08,183.06,5.4626]
[1722021009686,56.66,183.08,183.04,13.6578]
[1722021009894,45.0,183.08,183.07,5.4623]
[1722021012099,11.66,183.11,183.08,5.4619]
[1722021012302,56.66,183.1,183.08,5.4619]
[1722021012500,45.0,183.1,183.08,5.4619]
[1722021012694,45.0,183.1,183.09,5.4617]
[1722021013193,45.0,183.1,183.08,5.462]
[1722021013500,56.66,183.1,183.07,5.4623]
[1722021014207,56.66,183.1,183.08,5.462]
[1722021016611,56.66,183.1,183.09,5.4617]
[1722021018607,45.0,183.1,183.09,5.4617]
[1722021021395,45.0,183.1,183.08,5.462]
[1722021022407,56.66,183.1,183.08,5.462]
[1722021023913,56.66,183.1,183.07,5.4623]
[1722021024095,56.66,183.1,183.06,13.656]
[1722021024096,11.66,183.08,183.06,13.656]
[1722021025114,11.66,183.08,183.06,19.1186]
[1722021025803,11.66,183.08,183.07,5.4623]
[1722021025993,56.66,183.08,183.07,5.4623]
[1722021029924,45.0,183.08,183.07,5.4623]
[1722021031619,20.0,183.21,183.07,5.4623]
[1722021031620,5.4603,183.14,183.1,5.4614]
[1722021031810,11.66,183.12,183.1,5.4614]
[1722021032009,54.85298432,183.11,183.1,5.4614]
[1722021032405,66.51298432,183.11,183.1,5.4614]
[1722021032614,66.51298432,183.11,183.08,14.74679525]
[1722021032615,66.51298432,183.11,183.09,5.4617]
[1722021032901,56.66,183.11,183.09,5.4617]
[1722021033103,21.51298394,183.1,183.08,19.1165]
[1722021033294,11.66,183.09,183.08,19.1165]
[1722021034822,45.0,183.11,183.08,13.6545]
[1722021035025,11.66,183.15,183.11,13.6526]
[1722021035329,9.85170406,183.14,183.13,5.4605]
[1722021035626,9.85170406,183.15,183.13,5.4605]
[1722021035923,9.85170406,183.14,183.13,5.4605]
[1722021036642,54.85170406,183.14,183.13,5.4605]
[1722021037139,9.85170406,183.14,183.13,5.4605]
[1722021037343,11.66,183.16,183.13,5.4605]
[1722021037513,9.85170406,183.15,183.13,5.4605]
[1722021038212,11.66,183.16,183.13,5.4605]
[1722021038541,9.85123906,183.15,183.13,5.4605]
[1722021039513,9.85123906,183.15,183.14,5.4603]
[1722021039716,54.85123906,183.15,183.14,5.4603]
[1722021040244,54.85123906,183.15,183.13,5.4605]
[1722021040407,45.0,183.15,183.13,5.4605]
[1722021041524,45.0,183.15,183.14,5.4603]
[1722021042039,45.0,183.15,183.13,5.4605]
[1722021042741,56.66,183.15,183.11,19.1136]
[1722021043037,45.0,183.14,183.12,5.4608]
[1722021043406,11.66,183.16,183.13,5.4605]
[1722021043712,45.0,183.15,183.13,5.4605]
[1722021044919,56.66,183.15,183.13,5.4605]
[1722021047144,2.15379311,183.24,183.18,6.1852]
[1722021047359,0.7886573,183.28,183.27,19.0974]
[1722021047645,12.4486573,183.28,183.27,19.0974]
[1722021047818,12.4486573,183.28,183.24,5.4571]
[1722021048019,11.66,183.25,183.24,5.4571]
[1722021048222,11.66,183.25,183.23,13.6434]
[1722021048223,11.66,183.25,183.23,19.1009]
[1722021048460,11.66,183.24,183.23,19.1009]
[1722021048957,0.7886573,183.28,183.25,13.6418]
[1722021049256,11.66,183.26,183.25,19.0988]
[1722021049557,0.7886573,183.28,183.26,5.4564]
[1722021049852,0.7886573,183.28,183.25,13.6418]
[1722021050238,0.7886573,183.28,183.25,19.0987]
[1722021050551,0.7886573,183.28,183.25,13.6418]
[1722021050718,11.66,183.26,183.21,13.6448]
[1722021050918,11.66,183.26,183.21,19.1029]
[1722021050919,11.66,183.22,183.21,19.1029]
[1722021051120,11.66,183.22,183.19,5.4585]
[1722021051372,11.66,183.2,183.18,5.459]
[1722021051690,20.0,183.27,183.2,13.6457]
[1722021051691,0.45232762,183.27,183.2,13.6457]
[1722021051852,11.66,183.21,183.2,19.1041]
[1722021052935,11.66,183.21,183.2,13.6457]
[1722021053526,11.66,183.21,183.17,5.4593]
[1722021053848,11.66,183.24,183.17,5.4594]
[1722021053849,11.66,183.18,183.17,5.4594]
[1722021055367,11.66,183.19,183.18,5.4589]
[1722021055553,11.66,183.24,183.2,5.4584]
[1722021055754,11.66,183.21,183.2,5.4584]
[1722021056054,45.0,183.23,183.2,5.4584]
[1722021056243,11.66,183.21,183.2,5.4584]
[1722021057363,11.66,183.21,183.18,19.106]
[1722021057566,97.54962762,183.24,183.19,5.4587]
[1722021057873,11.66,183.2,183.18,19.1061]
[1722021058035,11.66,183.19,183.18,19.1061]
[1722021059994,5.90992762,183.23,183.18,19.1061]
[1722021060147,45.0,183.24,183.2,5.4584]
[1722021060471,11.66,183.21,183.18,19.1059]
[1722021060643,11.66,183.2,183.19,5.4586]
[1722021060852,11.66,183.21,183.18,13.6471]
[1722021061263,11.66,183.21,183.2,5.4583]
[1722021062063,11.66,183.21,183.18,19.1059]
[1722021062260,11.66,183.19,183.18,13.6471]
[1722021062641,11.66,183.19,183.18,19.1062]
[1722021063073,11.66,183.2,183.18,13.6471]
[1722021063370,11.66,183.2,183.19,5.4588]
[1722021069667,45.0,183.25,183.2,13.6455]
[1722021069868,11.66,183.22,183.2,13.6455]
[1722021070249,11.66,183.23,183.2,13.6455]
[1722021070467,11.66,183.23,183.22,5.4576]
[1722021070669,31.66,183.23,183.21,5.4581]
[1722021070865,11.66,183.22,183.2,19.1039]
[1722021071061,11.66,183.22,183.21,5.4582]
[1722021071377,11.66,183.23,183.21,5.4582]
[1722021071764,11.66,183.23,183.2,19.1039]
[1722021072162,11.66,183.23,183.2,13.6455]
[1722021072362,11.66,183.24,183.2,13.6455]
[1722021072558,11.66,183.23,183.2,13.6455]
[1722021073489,11.66,183.23,183.21,5.4579]
[1722021073880,11.66,183.23,183.22,5.4579]
[1722021074191,11.66,183.23,183.19,5.4585]
[1722021074480,11.66,183.2,183.17,19.1074]
[1722021074772,11.66,183.19,183.18,5.459]
[1722021074977,11.66,183.19,183.17,13.6483]
[1722021074978,11.66,183.19,183.17,19.1076]
[1722021075151,11.66,183.18,183.13,13.6507]
[1722021075351,11.66,183.17,183.16,5.4595]
[1722021076763,11.66,183.18,183.16,5.4595]
[1722021078059,11.66,183.18,183.17,5.4594]
[1722021080782,0.45232762,183.2,183.17,5.4594]
[1722021080955,11.66,183.18,183.17,5.4594]
[1722021081159,11.66,183.18,183.16,5.4596]
[1722021081360,11.66,183.17,183.16,5.4596]
[1722021082578,11.66,183.17,183.15,19.1092]
[1722021082776,11.66,183.16,183.15,19.1092]
[1722021087491,11.66,183.16,183.13,5.4605]
[1722021087664,11.66,183.14,183.11,19.1131]
[1722021087863,11.66,183.12,183.11,19.1131]
[1722021088374,11.66,183.12,183.08,13.6551]
[1722021088575,11.66,183.11,183.09,5.4615]
[1722021089284,11.66,183.11,183.1,5.4614]
[1722021090160,62.57352762,183.11,183.05,13.6573]
[1722021090486,11.66,183.08,183.06,5.4625]
[1722021091463,25.69048641,183.2,183.07,17.7888]
[1722021091658,11.66,183.14,183.08,11.66]